[Event "Early-Titled-Tuesday-Blitz-December-26-2023"]
[Site "Chess.com"]
[Date "2023.12.26"]
[Round "7"]
[White "sheldons73tshirt"]
[Black "Lion-Al-Messi"]
[Result "1-0"]
[WhiteElo "2561"]
[BlackElo "2605"]
[TimeControl "180+1"]
[EndTime "9:17:04 PST"]
[Termination "sheldons73tshirt won by resignation"]

1. e4 {[%clk 0:03:00.9]} 1... e6 {[%clk 0:02:59.9]} 2. d4 {[%clk 0:03:00.5]}
2... d5 {[%clk 0:03:00.5]} 3. e5 {[%clk 0:03:01]} 3... c5 {[%clk 0:03:00.5]} 4.
c3 {[%clk 0:03:01.4]} 4... Nc6 {[%clk 0:02:59.9]} 5. Nf3 {[%clk 0:03:01.5]} 5...
Qb6 {[%clk 0:03:00.2]} 6. Na3 {[%clk 0:03:01.7]} 6... cxd4 {[%clk 0:02:59.5]} 7.
cxd4 {[%clk 0:03:01.3]} 7... Bxa3 {[%clk 0:03:00]} 8. bxa3 {[%clk 0:03:00.9]}
8... Qa5+ {[%clk 0:02:55.4]} 9. Bd2 {[%clk 0:02:59.4]} 9... Qxa3 {[%clk
0:02:55.3]} 10. Qb1 {[%clk 0:02:29.4]} 10... Nh6 {[%clk 0:02:35.7]} 11. Bd3
{[%clk 0:02:23.5]} 11... Nf5 {[%clk 0:02:33]} 12. O-O {[%clk 0:02:17.4]} 12...
Qe7 {[%clk 0:02:21]} 13. Qb2 {[%clk 0:02:03.3]} 13... O-O {[%clk 0:02:17.5]} 14.
Rfc1 {[%clk 0:02:02.4]} 14... h6 {[%clk 0:01:34.9]} 15. Rc2 {[%clk 0:01:44.7]}
15... Nh4 {[%clk 0:01:34]} 16. Nxh4 {[%clk 0:01:35.3]} 16... Qxh4 {[%clk
0:01:34.9]} 17. Be3 {[%clk 0:01:35.7]} 17... Qd8 {[%clk 0:01:18.7]} 18. Rac1
{[%clk 0:01:34]} 18... Qb6 {[%clk 0:01:17.6]} 19. Qc3 {[%clk 0:01:17.8]} 19...
Bd7 {[%clk 0:01:10.1]} 20. Rb2 {[%clk 0:01:14.3]} 20... Qc7 {[%clk 0:01:07.4]}
21. Bb1 {[%clk 0:01:13.3]} 21... f5 {[%clk 0:00:39.6]} 22. exf6 {[%clk
0:01:05.9]} 22... Rxf6 {[%clk 0:00:39]} 23. Qd3 {[%clk 0:01:04.8]} 23... Rf5
{[%clk 0:00:22.7]} 24. g4 {[%clk 0:00:52.9]} 24... Rf6 {[%clk 0:00:22.9]} 25.
Qh7+ {[%clk 0:00:48.2]} 25... Kf7 {[%clk 0:00:23.1]} 26. g5 {[%clk 0:00:42.6]}
26... hxg5 {[%clk 0:00:22]} 27. Bxg5 {[%clk 0:00:41.5]} 27... Qd8 {[%clk
0:00:16]} 28. Rxb7 {[%clk 0:00:38.8]} 28... Rb8 {[%clk 0:00:11.3]} 29. Bxf6
{[%clk 0:00:33.4]} 29... Kxf6 {[%clk 0:00:10.6]} 30. Qg6+ {[%clk 0:00:32.2]}
30... Ke7 {[%clk 0:00:10.4]} 31. Qxg7+ {[%clk 0:00:31.6]} 31... Kd6 {[%clk
0:00:10.8]} 32. Qg3+ {[%clk 0:00:30.8]} 32... Ke7 {[%clk 0:00:11]} 33. Rxb8
{[%clk 0:00:28.6]} 33... Nxb8 {[%clk 0:00:10.9]} 34. Qg5+ {[%clk 0:00:26.9]}
34... Ke8 {[%clk 0:00:10.4]} 35. Bg6+ {[%clk 0:00:25.4]} 35... Kf8 {[%clk
0:00:10.7]} 36. Qxd8+ {[%clk 0:00:25.4]} 1-0

[Event "Early-Titled-Tuesday-Blitz-December-26-2023"]
[Site "Chess.com"]
[Date "2023.12.26"]
[Round "7"]
[White "Bala-Afiada"]
[Black "Azalea95"]
[Result "0-1"]
[WhiteElo "2029"]
[BlackElo "2338"]
[TimeControl "180+1"]
[EndTime "9:17:05 PST"]
[Termination "Azalea95 won on time"]

1. d4 {[%clk 0:03:00.9]} 1... Nf6 {[%clk 0:02:53.6]} 2. c4 {[%clk 0:03:00.9]}
2... e6 {[%clk 0:02:53.5]} 3. g3 {[%clk 0:03:01.5]} 3... d5 {[%clk 0:02:52.7]}
4. Nf3 {[%clk 0:03:01.9]} 4... Bb4+ {[%clk 0:02:50.6]} 5. Bd2 {[%clk 0:03:01.7]}
5... Be7 {[%clk 0:02:50.8]} 6. Bg2 {[%clk 0:03:02]} 6... O-O {[%clk 0:02:47.5]}
7. O-O {[%clk 0:03:02.1]} 7... c6 {[%clk 0:02:29.1]} 8. Qc2 {[%clk 0:02:57.6]}
8... Nbd7 {[%clk 0:02:18.2]} 9. Rd1 {[%clk 0:02:52.6]} 9... b6 {[%clk
0:02:18.2]} 10. Bf4 {[%clk 0:02:44.2]} 10... Ba6 {[%clk 0:02:17.2]} 11. b3
{[%clk 0:02:43.3]} 11... Rc8 {[%clk 0:01:55.1]} 12. Nbd2 {[%clk 0:02:42.3]}
12... h6 {[%clk 0:01:49.3]} 13. e4 {[%clk 0:02:39.3]} 13... dxe4 {[%clk
0:01:35.7]} 14. Nxe4 {[%clk 0:02:40.2]} 14... c5 {[%clk 0:01:17.3]} 15. dxc5
{[%clk 0:02:34.2]} 15... Nxe4 {[%clk 0:01:15.4]} 16. Qxe4 {[%clk 0:02:20.5]}
16... Nxc5 {[%clk 0:01:15.5]} 17. Qe2 {[%clk 0:02:07.6]} 17... Qe8 {[%clk
0:01:11.9]} 18. Ne5 {[%clk 0:01:56.7]} 18... Bf6 {[%clk 0:01:04.2]} 19. Rac1
{[%clk 0:01:46.8]} 19... Bb7 {[%clk 0:01:02.2]} 20. Rc2 {[%clk 0:01:39.9]} 20...
Bxg2 {[%clk 0:00:58.2]} 21. Kxg2 {[%clk 0:01:40.1]} 21... Qe7 {[%clk 0:00:57.9]}
22. Rcd2 {[%clk 0:01:38.3]} 22... Rfd8 {[%clk 0:00:54.4]} 23. Rxd8+ {[%clk
0:01:24.9]} 23... Rxd8 {[%clk 0:00:55.3]} 24. Nc6 {[%clk 0:01:23.5]} 24... Qb7
{[%clk 0:00:54.9]} 25. Rxd8+ {[%clk 0:01:16.4]} 25... Bxd8 {[%clk 0:00:54.9]}
26. Qf3 {[%clk 0:01:12.2]} 26... Bf6 {[%clk 0:00:32.1]} 27. Be5 {[%clk
0:00:40.1]} 27... Nd3 {[%clk 0:00:25.3]} 28. Qe4 {[%clk 0:00:03.7]} 28... Nxe5
{[%clk 0:00:20.4]} 0-1

[Event "Early-Titled-Tuesday-Blitz-December-26-2023"]
[Site "Chess.com"]
[Date "2023.12.26"]
[Round "7"]
[White "chito89"]
[Black "biostatistician"]
[Result "0-1"]
[WhiteElo "2828"]
[BlackElo "2630"]
[TimeControl "180+1"]
[EndTime "9:17:06 PST"]
[Termination "biostatistician won by resignation"]

1. Nf3 {[%clk 0:00:17.9]} 1... Nf6 {[%clk 0:02:55.9]} 2. e3 {[%clk 0:00:18.8]}
2... b6 {[%clk 0:02:56.4]} 3. c4 {[%clk 0:00:19.5]} 3... Bb7 {[%clk 0:02:57.3]}
4. Nc3 {[%clk 0:00:20]} 4... g6 {[%clk 0:02:56.1]} 5. d4 {[%clk 0:00:20.9]} 5...
Bg7 {[%clk 0:02:56.3]} 6. Bd3 {[%clk 0:00:21.8]} 6... O-O {[%clk 0:02:56.8]} 7.
O-O {[%clk 0:00:22.7]} 7... d5 {[%clk 0:02:55]} 8. b3 {[%clk 0:00:22.4]} 8... c5
{[%clk 0:02:54.4]} 9. Bb2 {[%clk 0:00:21]} 9... cxd4 {[%clk 0:02:52.3]} 10. Nxd4
{[%clk 0:00:20.3]} 10... e5 {[%clk 0:02:51]} 11. Nc2 {[%clk 0:00:20.2]} 11...
Nc6 {[%clk 0:02:31.9]} 12. cxd5 {[%clk 0:00:19.8]} 12... Nxd5 {[%clk 0:02:32.8]}
13. Nxd5 {[%clk 0:00:20.4]} 13... Qxd5 {[%clk 0:02:31.8]} 14. Bc4 {[%clk
0:00:20.9]} 14... Qxd1 {[%clk 0:02:24.9]} 15. Rfxd1 {[%clk 0:00:21.8]} 15...
Rfd8 {[%clk 0:02:25.3]} 16. Bd5 {[%clk 0:00:21.3]} 16... Rac8 {[%clk 0:02:15.5]}
17. Nb4 {[%clk 0:00:20.9]} 17... Nxb4 {[%clk 0:01:52.7]} 18. Bxb7 {[%clk
0:00:20.4]} 18... Rb8 {[%clk 0:01:52.9]} 19. Be4 {[%clk 0:00:14.8]} 19... f5
{[%clk 0:01:51]} 20. a3 {[%clk 0:00:14.4]} 20... fxe4 {[%clk 0:01:25.8]} 21.
axb4 {[%clk 0:00:14.3]} 21... Rd3 {[%clk 0:01:26.1]} 22. Rxd3 {[%clk 0:00:10.4]}
22... exd3 {[%clk 0:01:27]} 23. Kf1 {[%clk 0:00:06.9]} 23... Rc8 {[%clk
0:01:22.7]} 24. Rc1 {[%clk 0:00:06.7]} 24... Rxc1+ {[%clk 0:00:45.1]} 25. Bxc1
{[%clk 0:00:07.6]} 25... e4 {[%clk 0:00:46]} 26. b5 {[%clk 0:00:08]} 26... Bc3
{[%clk 0:00:45]} 27. Ba3 {[%clk 0:00:07.8]} 27... Kf7 {[%clk 0:00:41.1]} 28. Bd6
{[%clk 0:00:07.2]} 28... Ke6 {[%clk 0:00:40.7]} 29. Bb8 {[%clk 0:00:07.4]} 29...
Kd5 {[%clk 0:00:39.3]} 30. f3 {[%clk 0:00:08.1]} 30... exf3 {[%clk 0:00:28.7]}
31. gxf3 {[%clk 0:00:09]} 31... Kc5 {[%clk 0:00:29.4]} 32. e4 {[%clk 0:00:06.1]}
32... Kb4 {[%clk 0:00:27]} 33. Bxa7 {[%clk 0:00:06.1]} 33... Kxb3 {[%clk
0:00:25.7]} 34. Bxb6 {[%clk 0:00:05.8]} 34... d2 {[%clk 0:00:25.5]} 0-1

[Event "Early-Titled-Tuesday-Blitz-December-26-2023"]
[Site "Chess.com"]
[Date "2023.12.26"]
[Round "7"]
[White "R2D2PTY"]
[Black "Giantgoogachess"]
[Result "0-1"]
[WhiteElo "2259"]
[BlackElo "2387"]
[TimeControl "180+1"]
[EndTime "9:17:09 PST"]
[Termination "Giantgoogachess won on time"]

1. e4 {[%clk 0:02:56]} 1... c5 {[%clk 0:02:47.5]} 2. Nc3 {[%clk 0:02:54.5]} 2...
e6 {[%clk 0:02:46.9]} 3. d4 {[%clk 0:02:53.2]} 3... cxd4 {[%clk 0:02:47.8]} 4.
Qxd4 {[%clk 0:02:53.7]} 4... Nc6 {[%clk 0:02:48]} 5. Qe3 {[%clk 0:02:54.4]} 5...
a6 {[%clk 0:02:47.4]} 6. Qg3 {[%clk 0:02:52.6]} 6... b5 {[%clk 0:02:46.2]} 7.
Bd3 {[%clk 0:02:43]} 7... Bb7 {[%clk 0:02:46.1]} 8. Nf3 {[%clk 0:02:37.7]} 8...
Nf6 {[%clk 0:02:36.5]} 9. e5 {[%clk 0:02:31.2]} 9... Nh5 {[%clk 0:02:30.3]} 10.
Qh3 {[%clk 0:02:25.4]} 10... g6 {[%clk 0:02:30.4]} 11. g4 {[%clk 0:02:02.2]}
11... Ng7 {[%clk 0:02:26.2]} 12. Ne4 {[%clk 0:02:02.9]} 12... Be7 {[%clk
0:02:24.6]} 13. Bh6 {[%clk 0:01:48.4]} 13... Rg8 {[%clk 0:02:22.4]} 14. O-O-O
{[%clk 0:01:29.4]} 14... Qa5 {[%clk 0:02:15.2]} 15. Kb1 {[%clk 0:00:59.5]} 15...
O-O-O {[%clk 0:02:13.3]} 16. Nf6 {[%clk 0:00:53.7]} 16... Bxf6 {[%clk
0:02:11.2]} 17. exf6 {[%clk 0:00:54.1]} 17... Ne8 {[%clk 0:02:11.9]} 18. Bd2
{[%clk 0:00:50.3]} 18... Qc7 {[%clk 0:01:50.1]} 19. g5 {[%clk 0:00:49.6]} 19...
Rh8 {[%clk 0:01:47.6]} 20. c4 {[%clk 0:00:41.2]} 20... b4 {[%clk 0:01:45]} 21.
Be3 {[%clk 0:00:23.5]} 21... d6 {[%clk 0:01:39.5]} 22. Rhe1 {[%clk 0:00:20.3]}
22... Kb8 {[%clk 0:01:38.7]} 23. Be4 {[%clk 0:00:17.7]} 23... a5 {[%clk
0:01:36.6]} 24. Nd2 {[%clk 0:00:17.2]} 24... Ne5 {[%clk 0:01:34.5]} 25. Bxb7
{[%clk 0:00:16.5]} 25... Qxb7 {[%clk 0:01:35.4]} 26. Bf4 {[%clk 0:00:14.1]}
26... Nc7 {[%clk 0:01:33.2]} 27. Bxe5 {[%clk 0:00:12.9]} 27... dxe5 {[%clk
0:01:33.5]} 28. Rxe5 {[%clk 0:00:13.8]} 28... Qb6 {[%clk 0:01:31.1]} 29. c5
{[%clk 0:00:11.9]} 29... Qc6 {[%clk 0:01:29.6]} 30. Qe3 {[%clk 0:00:12.2]} 30...
Rd7 {[%clk 0:01:27.4]} 31. Rc1 {[%clk 0:00:12.2]} 31... Rhd8 {[%clk 0:01:27.5]}
32. Nc4 {[%clk 0:00:12]} 32... Qa6 {[%clk 0:01:14.4]} 33. Nb6 {[%clk 0:00:11.5]}
33... Rd3 {[%clk 0:01:14.1]} 34. Qe4 {[%clk 0:00:11.1]} 34... Rd2 {[%clk
0:01:10.5]} 35. Nc4 {[%clk 0:00:07.9]} 35... Rxf2 {[%clk 0:01:08.6]} 36. Nd6
{[%clk 0:00:07.5]} 36... Nd5 {[%clk 0:01:02.6]} 37. Qd4 {[%clk 0:00:06.5]} 37...
Re2 {[%clk 0:01:00.1]} 38. c6 {[%clk 0:00:06.3]} 38... Rxe5 {[%clk 0:00:56.8]}
39. c7+ {[%clk 0:00:06.3]} 39... Nxc7 {[%clk 0:00:55.1]} 40. Qxe5 {[%clk
0:00:05.4]} 40... Rxd6 {[%clk 0:00:46.5]} 41. Qc5 {[%clk 0:00:05.1]} 41... Qb6
{[%clk 0:00:46.4]} 42. Qc4 {[%clk 0:00:03.7]} 42... Kb7 {[%clk 0:00:44.1]} 43.
Qe4+ {[%clk 0:00:03.7]} 43... Rc6 {[%clk 0:00:43.9]} 44. a3 {[%clk 0:00:02.8]}
44... Nd5 {[%clk 0:00:44.2]} 45. Rd1 {[%clk 0:00:01.7]} 45... bxa3 {[%clk
0:00:42.8]} 0-1

[Event "Early-Titled-Tuesday-Blitz-December-26-2023"]
[Site "Chess.com"]
[Date "2023.12.26"]
[Round "7"]
[White "RebecaJimnz"]
[Black "a-z30"]
[Result "0-1"]
[WhiteElo "2271"]
[BlackElo "2496"]
[TimeControl "180+1"]
[EndTime "9:17:12 PST"]
[Termination "a-z30 won by resignation"]

1. e4 {[%clk 0:02:57.8]} 1... d6 {[%clk 0:03:00.9]} 2. d4 {[%clk 0:02:56.6]}
2... Nf6 {[%clk 0:03:01.4]} 3. Nc3 {[%clk 0:02:56]} 3... g6 {[%clk 0:03:02]} 4.
Bf4 {[%clk 0:02:56.1]} 4... Bg7 {[%clk 0:03:02.6]} 5. Qd2 {[%clk 0:02:56.5]}
5... O-O {[%clk 0:03:03.2]} 6. O-O-O {[%clk 0:02:51.7]} 6... Nc6 {[%clk
0:02:40.4]} 7. Bh6 {[%clk 0:02:40.6]} 7... e5 {[%clk 0:02:37.9]} 8. d5 {[%clk
0:02:38.9]} 8... Nd4 {[%clk 0:02:37.3]} 9. h4 {[%clk 0:02:30.4]} 9... Bxh6
{[%clk 0:02:24.4]} 10. Qxh6 {[%clk 0:02:29.5]} 10... Ng4 {[%clk 0:02:25]} 11.
Qd2 {[%clk 0:02:25.1]} 11... f5 {[%clk 0:02:23.3]} 12. f3 {[%clk 0:02:18.4]}
12... Nf6 {[%clk 0:02:22.2]} 13. Qg5 {[%clk 0:01:15.7]} 13... Nh5 {[%clk
0:02:00.6]} 14. Qxd8 {[%clk 0:00:48.5]} 14... Rxd8 {[%clk 0:01:59.9]} 15. exf5
{[%clk 0:00:48.5]} 15... Ng3 {[%clk 0:01:32.1]} 16. Rh3 {[%clk 0:00:38.4]} 16...
Nxf1 {[%clk 0:01:31.1]} 17. Rxf1 {[%clk 0:00:39.3]} 17... Bxf5 {[%clk
0:01:30.6]} 18. g4 {[%clk 0:00:37.2]} 18... Bxc2 {[%clk 0:01:24.2]} 19. Rf2
{[%clk 0:00:13.5]} 19... Bd3 {[%clk 0:01:21.4]} 20. h5 {[%clk 0:00:12.1]} 20...
Kg7 {[%clk 0:01:00.3]} 21. Rfh2 {[%clk 0:00:10.1]} 21... g5 {[%clk 0:00:57.9]}
22. h6+ {[%clk 0:00:09.9]} 22... Kf6 {[%clk 0:00:52.4]} 23. Ne4+ {[%clk
0:00:10.4]} 23... Bxe4 {[%clk 0:00:51.5]} 24. fxe4 {[%clk 0:00:11.3]} 24... Kg6
{[%clk 0:00:50.1]} 25. Nf3 {[%clk 0:00:09]} 25... Nxf3 {[%clk 0:00:46]} 26. Rxf3
{[%clk 0:00:09.9]} 26... Rf8 {[%clk 0:00:45.9]} 27. Rhf2 {[%clk 0:00:10.2]}
27... Rf4 {[%clk 0:00:45.6]} 28. Rxf4 {[%clk 0:00:08.7]} 28... gxf4 {[%clk
0:00:37.1]} 29. Rh2 {[%clk 0:00:08.9]} 29... Rf8 {[%clk 0:00:28.3]} 30. Rc2
{[%clk 0:00:07.2]} 30... Rf7 {[%clk 0:00:27.3]} 31. Kd1 {[%clk 0:00:06.9]} 31...
Kxh6 {[%clk 0:00:27.2]} 32. Ke2 {[%clk 0:00:07.5]} 32... f3+ {[%clk 0:00:26]}
33. Kf2 {[%clk 0:00:07.7]} 33... Kg5 {[%clk 0:00:26.6]} 34. Kg3 {[%clk 0:00:08]}
34... f2 {[%clk 0:00:25.5]} 35. Rxf2 {[%clk 0:00:05.3]} 35... Rxf2 {[%clk
0:00:24.5]} 36. Kxf2 {[%clk 0:00:06.2]} 36... Kxg4 {[%clk 0:00:24.6]} 0-1

[Event "Early-Titled-Tuesday-Blitz-December-26-2023"]
[Site "Chess.com"]
[Date "2023.12.26"]
[Round "7"]
[White "Szparu"]
[Black "Alexchess1984"]
[Result "1-0"]
[WhiteElo "2882"]
[BlackElo "2724"]
[TimeControl "180+1"]
[EndTime "9:17:14 PST"]
[Termination "Szparu won by resignation"]

1. e4 {[%clk 0:03:00.9]} 1... c5 {[%clk 0:03:00.2]} 2. c3 {[%clk 0:03:00.6]}
2... Nf6 {[%clk 0:02:58.9]} 3. e5 {[%clk 0:03:01]} 3... Nd5 {[%clk 0:02:59.5]}
4. d4 {[%clk 0:03:01.9]} 4... cxd4 {[%clk 0:03:00.3]} 5. Nf3 {[%clk 0:03:02.3]}
5... Nc6 {[%clk 0:03:00.4]} 6. Bc4 {[%clk 0:03:02.2]} 6... Nb6 {[%clk
0:03:00.4]} 7. Bb3 {[%clk 0:03:02.5]} 7... d5 {[%clk 0:03:00.8]} 8. cxd4 {[%clk
0:03:01]} 8... Bg4 {[%clk 0:03:00.3]} 9. Be3 {[%clk 0:02:58.3]} 9... e6 {[%clk
0:03:00.2]} 10. Nbd2 {[%clk 0:02:57.3]} 10... Rc8 {[%clk 0:02:59.6]} 11. O-O
{[%clk 0:02:54]} 11... Be7 {[%clk 0:02:58.7]} 12. a3 {[%clk 0:02:49.3]} 12...
O-O {[%clk 0:02:48.7]} 13. Bc2 {[%clk 0:02:47.5]} 13... Na5 {[%clk 0:02:47]} 14.
h3 {[%clk 0:02:46.7]} 14... Bh5 {[%clk 0:02:38]} 15. Qb1 {[%clk 0:02:23.6]}
15... Bg6 {[%clk 0:02:33.4]} 16. Bxg6 {[%clk 0:02:23]} 16... hxg6 {[%clk
0:02:19]} 17. g3 {[%clk 0:02:23]} 17... Nbc4 {[%clk 0:02:17]} 18. Kg2 {[%clk
0:02:22.5]} 18... Nxe3+ {[%clk 0:02:16.4]} 19. fxe3 {[%clk 0:02:22.7]} 19... Nc4
{[%clk 0:02:14.4]} 20. Nxc4 {[%clk 0:02:17.7]} 20... Rxc4 {[%clk 0:02:15.3]} 21.
Rf2 {[%clk 0:02:13.6]} 21... Qc7 {[%clk 0:02:14.2]} 22. Qd3 {[%clk 0:02:10.3]}
22... Rc8 {[%clk 0:02:13.3]} 23. Raf1 {[%clk 0:02:10.2]} 23... Rc2 {[%clk
0:02:13.7]} 24. Nd2 {[%clk 0:02:07.7]} 24... Rf8 {[%clk 0:01:59]} 25. e4 {[%clk
0:01:37.6]} 25... Rxb2 {[%clk 0:01:37.6]} 26. exd5 {[%clk 0:01:37.3]} 26... exd5
{[%clk 0:01:38.4]} 27. e6 {[%clk 0:01:37.5]} 27... f5 {[%clk 0:01:37.7]} 28. Nf3
{[%clk 0:01:34.3]} 28... Rxf2+ {[%clk 0:01:34]} 29. Rxf2 {[%clk 0:01:35.2]}
29... Bf6 {[%clk 0:01:26.9]} 30. g4 {[%clk 0:01:32.1]} 30... Qf4 {[%clk
0:01:22.7]} 31. Ne5 {[%clk 0:01:00]} 31... Qe4+ {[%clk 0:01:19.5]} 32. Qxe4
{[%clk 0:01:00.5]} 32... dxe4 {[%clk 0:01:09.2]} 33. Nxg6 {[%clk 0:00:58.6]}
33... fxg4 {[%clk 0:00:22.4]} 34. Nxf8 {[%clk 0:00:55.5]} 34... gxh3+ {[%clk
0:00:23.3]} 35. Kxh3 {[%clk 0:00:54.8]} 35... Kxf8 {[%clk 0:00:24.2]} 36. d5
{[%clk 0:00:52.4]} 36... Ke7 {[%clk 0:00:23.3]} 37. Kg4 {[%clk 0:00:48.5]} 37...
Kd6 {[%clk 0:00:23.5]} 38. Kf5 {[%clk 0:00:49]} 38... e3 {[%clk 0:00:17.6]} 39.
Re2 {[%clk 0:00:47]} 39... Kxd5 {[%clk 0:00:14.5]} 40. Rxe3 {[%clk 0:00:46.8]}
40... Be7 {[%clk 0:00:14.9]} 41. Rd3+ {[%clk 0:00:46.5]} 41... Kc6 {[%clk
0:00:14.8]} 42. Kg6 {[%clk 0:00:44.2]} 42... b5 {[%clk 0:00:12.4]} 43. Kxg7
{[%clk 0:00:42.6]} 43... a5 {[%clk 0:00:13]} 44. Kf7 {[%clk 0:00:42.8]} 44...
Bc5 {[%clk 0:00:11.2]} 45. Rc3 {[%clk 0:00:32.4]} 1-0

[Event "Early-Titled-Tuesday-Blitz-December-26-2023"]
[Site "Chess.com"]
[Date "2023.12.26"]
[Round "7"]
[White "egnfanclub"]
[Black "mariofs"]
[Result "0-1"]
[WhiteElo "2340"]
[BlackElo "2227"]
[TimeControl "180+1"]
[EndTime "9:17:14 PST"]
[Termination "mariofs won on time"]

1. e4 {[%clk 0:03:00.9]} 1... c5 {[%clk 0:02:59.4]} 2. Nc3 {[%clk 0:03:00.5]}
2... Nc6 {[%clk 0:02:59.6]} 3. f4 {[%clk 0:03:00.4]} 3... g6 {[%clk 0:02:59.6]}
4. Nf3 {[%clk 0:03:00.8]} 4... Bg7 {[%clk 0:02:59.9]} 5. Bc4 {[%clk 0:03:01.5]}
5... e6 {[%clk 0:02:59.5]} 6. f5 {[%clk 0:03:02.1]} 6... Nge7 {[%clk 0:02:58.9]}
7. fxe6 {[%clk 0:03:02.2]} 7... fxe6 {[%clk 0:02:58.8]} 8. d3 {[%clk 0:03:02.9]}
8... d5 {[%clk 0:02:50.2]} 9. Bb3 {[%clk 0:03:02.4]} 9... O-O {[%clk 0:02:49.9]}
10. O-O {[%clk 0:03:01.9]} 10... b5 {[%clk 0:02:38.5]} 11. Nxb5 {[%clk
0:03:00.9]} 11... Qb6 {[%clk 0:02:38]} 12. c4 {[%clk 0:03:00.8]} 12... d4 {[%clk
0:02:32.3]} 13. Qe1 {[%clk 0:02:12.4]} 13... a6 {[%clk 0:02:32.2]} 14. Na3
{[%clk 0:02:11.7]} 14... Nb4 {[%clk 0:02:28.6]} 15. Qh4 {[%clk 0:02:09.5]} 15...
e5 {[%clk 0:02:09.9]} 16. Bh6 {[%clk 0:01:48.1]} 16... g5 {[%clk 0:01:27.5]} 17.
Bxg5 {[%clk 0:01:44]} 17... Ng6 {[%clk 0:01:28]} 18. Qg3 {[%clk 0:01:35.8]}
18... Nxd3 {[%clk 0:01:21.3]} 19. Nh4 {[%clk 0:01:32.5]} 19... Nxh4 {[%clk
0:01:10.6]} 20. Rxf8+ {[%clk 0:01:30.1]} 20... Kxf8 {[%clk 0:01:04.2]} 21. Qxd3
{[%clk 0:01:18.3]} 21... Ng6 {[%clk 0:01:00.9]} 22. Rf1+ {[%clk 0:01:14.5]}
22... Kg8 {[%clk 0:00:58.3]} 23. Nb1 {[%clk 0:00:56.9]} 23... a5 {[%clk
0:00:48.5]} 24. Ba4 {[%clk 0:00:49.3]} 24... Be6 {[%clk 0:00:44.9]} 25. b3
{[%clk 0:00:45.9]} 25... Qd6 {[%clk 0:00:38.8]} 26. Qg3 {[%clk 0:00:35.8]} 26...
Rf8 {[%clk 0:00:36.4]} 27. Rxf8+ {[%clk 0:00:34.6]} 27... Qxf8 {[%clk
0:00:37.3]} 28. Nd2 {[%clk 0:00:35]} 28... Nf4 {[%clk 0:00:32.7]} 29. Qf3 {[%clk
0:00:11.5]} 29... h6 {[%clk 0:00:29.1]} 30. Bh4 {[%clk 0:00:10.4]} 30... Qf7
{[%clk 0:00:24.9]} 31. g3 {[%clk 0:00:05.6]} 31... Ng6 {[%clk 0:00:20.1]} 32.
Bd8 {[%clk 0:00:01.2]} 32... Qa7 {[%clk 0:00:16]} 0-1

[Event "Early-Titled-Tuesday-Blitz-December-26-2023"]
[Site "Chess.com"]
[Date "2023.12.26"]
[Round "7"]
[White "AsaHoffmann"]
[Black "Shuvalov"]
[Result "1-0"]
[WhiteElo "2336"]
[BlackElo "2513"]
[TimeControl "180+1"]
[EndTime "9:17:18 PST"]
[Termination "AsaHoffmann won by resignation"]

1. d4 {[%clk 0:02:24]} 1... d6 {[%clk 0:02:55.9]} 2. e4 {[%clk 0:02:18.9]} 2...
c6 {[%clk 0:02:54.8]} 3. Nc3 {[%clk 0:02:16.8]} 3... Nd7 {[%clk 0:02:51.3]} 4.
f4 {[%clk 0:02:16.7]} 4... g5 {[%clk 0:02:46.8]} 5. fxg5 {[%clk 0:02:15.2]} 5...
h6 {[%clk 0:02:46.8]} 6. Nf3 {[%clk 0:02:14.4]} 6... hxg5 {[%clk 0:02:43.6]} 7.
Bxg5 {[%clk 0:02:12.3]} 7... Ngf6 {[%clk 0:02:41.6]} 8. Qd2 {[%clk 0:02:08.5]}
8... Ng4 {[%clk 0:02:40.3]} 9. h3 {[%clk 0:02:04.9]} 9... Qb6 {[%clk 0:02:31.4]}
10. O-O-O {[%clk 0:02:02.8]} 10... Bg7 {[%clk 0:02:21]} 11. Bc4 {[%clk
0:01:58.4]} 11... Ngf6 {[%clk 0:02:03.5]} 12. e5 {[%clk 0:01:56]} 12... dxe5
{[%clk 0:01:59]} 13. dxe5 {[%clk 0:01:55.7]} 13... Nh5 {[%clk 0:01:46.6]} 14. g4
{[%clk 0:01:33.9]} 14... Ng3 {[%clk 0:01:34.7]} 15. Rhe1 {[%clk 0:01:33.1]}
15... Rxh3 {[%clk 0:01:20.9]} 16. Qf4 {[%clk 0:01:32.4]} 16... e6 {[%clk
0:01:13.5]} 17. Bh4 {[%clk 0:01:15.4]} 17... Qf2 {[%clk 0:01:03.9]} 18. Rd2
{[%clk 0:01:06.1]} 18... Ne2+ {[%clk 0:00:54.3]} 19. Rdxe2 {[%clk 0:01:02.8]}
19... Qxf3 {[%clk 0:00:50.7]} 20. Qg5 {[%clk 0:00:51.2]} 20... Rxh4 {[%clk
0:00:36.8]} 21. Qxh4 {[%clk 0:00:49.4]} 21... Nxe5 {[%clk 0:00:31.7]} 22. Bb3
{[%clk 0:00:46.1]} 22... Bd7 {[%clk 0:00:27.5]} 23. Qh7 {[%clk 0:00:44.9]} 23...
Qf4+ {[%clk 0:00:20.4]} 24. Kb1 {[%clk 0:00:44.8]} 24... Qg5 {[%clk 0:00:20.7]}
25. Qg8+ {[%clk 0:00:34.5]} 25... Ke7 {[%clk 0:00:21]} 26. Qxa8 {[%clk
0:00:33.5]} 26... Nf3 {[%clk 0:00:20.3]} 27. Rd1 {[%clk 0:00:31]} 27... Nd4
{[%clk 0:00:18.5]} 28. Red2 {[%clk 0:00:27.3]} 28... e5 {[%clk 0:00:18.1]} 29.
Qxb7 {[%clk 0:00:26.8]} 29... Qxg4 {[%clk 0:00:17]} 30. Na4 {[%clk 0:00:23.6]}
30... Kd6 {[%clk 0:00:15.4]} 31. c3 {[%clk 0:00:20.4]} 31... Bf5+ {[%clk
0:00:15.2]} 32. Ka1 {[%clk 0:00:20.6]} 32... Bh6 {[%clk 0:00:12.9]} 33. cxd4
{[%clk 0:00:20.1]} 33... Bxd2 {[%clk 0:00:13]} 34. dxe5+ {[%clk 0:00:20]} 34...
Kxe5 {[%clk 0:00:13]} 35. Qc7+ {[%clk 0:00:19.2]} 35... Kf6 {[%clk 0:00:12.5]}
36. Rxd2 {[%clk 0:00:18.2]} 36... Qg1+ {[%clk 0:00:10.5]} 37. Rd1 {[%clk
0:00:18.1]} 37... Qe3 {[%clk 0:00:10]} 38. Qd6+ {[%clk 0:00:17.7]} 38... Kg7
{[%clk 0:00:09.1]} 39. Qd4+ {[%clk 0:00:17.5]} 39... Qxd4 {[%clk 0:00:08.7]} 40.
Rxd4 {[%clk 0:00:17.5]} 1-0